[Event "Titled Tuesday Blitz June 07 Late 2022"]
[White "Szalay, Karoly"]
[Black "Bok, Benjamin"]
[WhiteFideId "2600544"]
[BlackFideId "1017063"]
[WhiteElo "2484"]
[BlackElo "2658"]
[Result "1/2-1/2"]
[Round "01"]
[TimeControl "180+1"]
[Date "2022.06.07"]
[WhiteClock "0:00:26"]
[BlackClock "0:00:15"]

1. e4 {[%clk 0:03:00]}  c5 {[%clk 0:02:59]} 2. Nf3 {[%clk 0:03:00]}  d6 {[%clk 0:03:00]} 3. d4 {[%clk 0:02:58]}  cxd4 {[%clk 0:03:01]} 4. Nxd4 {[%clk 0:02:59]}  Nf6 {[%clk 0:03:01]} 5. Nc3 {[%clk 0:02:59]}  a6 {[%clk 0:03:02]} 6. Bg5 {[%clk 0:03:00]}  Nbd7 {[%clk 0:03:02]} 7. f3 {[%clk 0:03:00]}  b5 {[%clk 0:02:56]} 8. Qd2 {[%clk 0:02:59]}  Bb7 {[%clk 0:02:56]} 9. a3 {[%clk 0:02:58]}  e6 {[%clk 0:02:54]} 10. O-O-O {[%clk 0:02:47]}  Be7 {[%clk 0:02:54]} 11. h4 {[%clk 0:02:47]}  Rc8 {[%clk 0:02:54]} 12. Kb1 {[%clk 0:02:47]}  h6 {[%clk 0:02:48]} 13. Be3 {[%clk 0:02:47]}  h5 {[%clk 0:02:49]} 14. Bg5 {[%clk 0:02:46]}  Ne5 {[%clk 0:02:47]} 15. f4 {[%clk 0:02:34]}  Neg4 {[%clk 0:02:41]} 16. Bd3 {[%clk 0:02:32]}  O-O {[%clk 0:02:39]} 17. Rhe1 {[%clk 0:02:21]}  Re8 {[%clk 0:02:35]} 18. e5 {[%clk 0:02:06]}  dxe5 {[%clk 0:02:27]} 19. fxe5 {[%clk 0:02:07]}  Nd5 {[%clk 0:02:27]} 20. Nxd5 {[%clk 0:01:37]}  Bxd5 {[%clk 0:02:21]} 21. Nf3 {[%clk 0:01:25]}  g6 {[%clk 0:02:03]} 22. Qf4 {[%clk 0:01:21]}  Nf2 {[%clk 0:01:45]} 23. Rd2 {[%clk 0:01:21]}  Nxd3 {[%clk 0:01:44]} 24. Rxd3 {[%clk 0:01:22]}  Rc4 {[%clk 0:01:44]} 25. Rd4 {[%clk 0:01:16]}  Qc7 {[%clk 0:01:40]} 26. Bxe7 {[%clk 0:01:13]}  Qxe7 {[%clk 0:01:41]} 27. Rxc4 {[%clk 0:01:10]}  bxc4 {[%clk 0:01:42]} 28. g4 {[%clk 0:01:06]}  Rb8 {[%clk 0:01:25]} 29. Re3 {[%clk 0:01:07]}  Qb7 {[%clk 0:01:21]} 30. b3 {[%clk 0:00:58]}  cxb3 {[%clk 0:01:21]} 31. c4 {[%clk 0:00:56]}  Bxf3 {[%clk 0:01:16]} 32. Rxf3 {[%clk 0:00:55]}  Qd7 {[%clk 0:01:14]} 33. Kb2 {[%clk 0:00:49]}  hxg4 {[%clk 0:01:10]} 34. Rf2 {[%clk 0:00:46]}  g3 {[%clk 0:01:09]} 35. Rd2 {[%clk 0:00:44]}  Qc7 {[%clk 0:00:42]} 36. h5 {[%clk 0:00:42]}  Rd8 {[%clk 0:00:41]} 37. Rxd8+ {[%clk 0:00:38]}  Qxd8 {[%clk 0:00:42]} 38. hxg6 {[%clk 0:00:38]}  fxg6 {[%clk 0:00:39]} 39. Qxg3 {[%clk 0:00:39]}  g5 {[%clk 0:00:36]} 40. Kxb3 {[%clk 0:00:36]}  Qd1+ {[%clk 0:00:31]} 41. Kc3 {[%clk 0:00:35]}  g4 {[%clk 0:00:31]} 42. Qf4 {[%clk 0:00:30]}  Qe1+ {[%clk 0:00:22]} 43. Kd4 {[%clk 0:00:25]}  g3 {[%clk 0:00:14]} 44. Qg5+ {[%clk 0:00:24]}  Kh7 {[%clk 0:00:13]} 45. Qh5+ {[%clk 0:00:24]}  Kg7 {[%clk 0:00:14]} 46. Qg5+ {[%clk 0:00:25]}  Kh7 {[%clk 0:00:14]} 47. Qh5+ {[%clk 0:00:25]}  Kg7 {[%clk 0:00:15]} 48. Qg5+ {[%clk 0:00:26]}  Kh7 {[%clk 0:00:15]} 1/2-1/2


[Site "https://www.chess.com"]

[Event "Titled Tuesday Blitz June 07 Late 2022"]
[White "Tahbaz, Arash"]
[Black "Vivas Zamora, Fabian Ernesto"]
[WhiteFideId "12528846"]
[BlackFideId "3902480"]
[WhiteElo "2389"]
[BlackElo "2014"]
[Result "1-0"]
[Round "01"]
[TimeControl "180+1"]
[Date "2022.06.07"]
[WhiteClock "0:00:30"]
[BlackClock "0:00:06"]

1. d4 {[%clk 0:03:00]}  Nf6 {[%clk 0:02:58]} 2. Nf3 {[%clk 0:03:00]}  g6 {[%clk 0:02:58]} 3. g3 {[%clk 0:03:00]}  Bg7 {[%clk 0:02:59]} 4. Bg2 {[%clk 0:03:01]}  O-O {[%clk 0:02:59]} 5. O-O {[%clk 0:03:01]}  d5 {[%clk 0:03:00]} 6. c4 {[%clk 0:03:01]}  c6 {[%clk 0:03:00]} 7. cxd5 {[%clk 0:03:00]}  cxd5 {[%clk 0:03:01]} 8. Nc3 {[%clk 0:03:00]}  Ne4 {[%clk 0:02:59]} 9. Nxe4 {[%clk 0:02:52]}  dxe4 {[%clk 0:03:00]} 10. Ng5 {[%clk 0:02:53]}  Qxd4 {[%clk 0:02:57]} 11. Nxe4 {[%clk 0:02:47]}  Nc6 {[%clk 0:02:49]} 12. Qxd4 {[%clk 0:01:50]}  Nxd4 {[%clk 0:02:48]} 13. Nc3 {[%clk 0:01:51]}  Be6 {[%clk 0:02:20]} 14. Bxb7 {[%clk 0:01:44]}  Rab8 {[%clk 0:02:15]} 15. Be4 {[%clk 0:01:44]}  Bc4 {[%clk 0:01:53]} 16. Re1 {[%clk 0:01:44]}  f5 {[%clk 0:01:47]} 17. Bb1 {[%clk 0:01:35]}  Rfd8 {[%clk 0:01:33]} 18. f3 {[%clk 0:01:10]}  a5 {[%clk 0:01:19]} 19. Kf2 {[%clk 0:01:10]}  a4 {[%clk 0:01:19]} 20. Nxa4 {[%clk 0:01:08]}  Rb7 {[%clk 0:00:29]} 21. b3 {[%clk 0:01:03]}  Nxb3 {[%clk 0:00:22]} 22. axb3 {[%clk 0:00:59]}  Bxa1 {[%clk 0:00:22]} 23. Nc5 {[%clk 0:00:53]}  Bd4+ {[%clk 0:00:22]} 24. Be3 {[%clk 0:00:54]}  Bxc5 {[%clk 0:00:20]} 25. Bxc5 {[%clk 0:00:54]}  Rxb3 {[%clk 0:00:20]} 26. Rc1 {[%clk 0:00:51]}  Bf7 {[%clk 0:00:17]} 27. Bxe7 {[%clk 0:00:48]}  Re8 {[%clk 0:00:16]} 28. Bf6 {[%clk 0:00:46]}  Rb6 {[%clk 0:00:14]} 29. Bd4 {[%clk 0:00:44]}  Rd6 {[%clk 0:00:10]} 30. Be3 {[%clk 0:00:34]}  Rde6 {[%clk 0:00:09]} 31. Rc3 {[%clk 0:00:34]}  R6e7 {[%clk 0:00:08]} 32. h4 {[%clk 0:00:34]}  h5 {[%clk 0:00:08]} 33. Bc2 {[%clk 0:00:34]}  Bd5 {[%clk 0:00:05]} 34. Bd1 {[%clk 0:00:32]}  Kf7 {[%clk 0:00:04]} 35. Bg5 {[%clk 0:00:30]}  Rd7 {[%clk 0:00:04]} 36. Ba4 {[%clk 0:00:29]}  Rde7 {[%clk 0:00:03]} 37. Bxe7 {[%clk 0:00:20]}  Rxe7 {[%clk 0:00:03]} 38. Bb5 {[%clk 0:00:21]}  Be6 {[%clk 0:00:03]} 39. Bd3 {[%clk 0:00:21]}  Rd7 {[%clk 0:00:03]} 40. Rc6 {[%clk 0:00:21]}  Ra7 {[%clk 0:00:02]} 41. Rb6 {[%clk 0:00:21]}  Rc7 {[%clk 0:00:02]} 42. Ke3 {[%clk 0:00:22]}  Ra7 {[%clk 0:00:02]} 43. Kf4 {[%clk 0:00:22]}  Kf6 {[%clk 0:00:02]} 44. Bc4 {[%clk 0:00:21]}  Re7 {[%clk 0:00:01]} 45. Rxe6+ {[%clk 0:00:21]}  Rxe6 {[%clk 0:00:02]} 46. Bxe6 {[%clk 0:00:21]}  Kxe6 {[%clk 0:00:03]} 47. Kg5 {[%clk 0:00:21]}  Kf7 {[%clk 0:00:03]} 48. e4 {[%clk 0:00:20]}  fxe4 {[%clk 0:00:03]} 49. fxe4 {[%clk 0:00:21]}  Kg7 {[%clk 0:00:04]} 50. e5 {[%clk 0:00:22]}  Kf7 {[%clk 0:00:04]} 51. e6+ {[%clk 0:00:23]}  Kg7 {[%clk 0:00:02]} 52. e7 {[%clk 0:00:23]}  Kf7 {[%clk 0:00:03]} 53. e8=Q+ {[%clk 0:00:24]}  Kxe8 {[%clk 0:00:03]} 54. Kxg6 {[%clk 0:00:25]}  Ke7 {[%clk 0:00:04]} 55. Kxh5 {[%clk 0:00:26]}  Kf6 {[%clk 0:00:05]} 56. Kh6 {[%clk 0:00:26]}  Kf5 {[%clk 0:00:05]} 57. Kg7 {[%clk 0:00:27]}  Kg4 {[%clk 0:00:05]} 58. Kg6 {[%clk 0:00:27]}  Kxg3 {[%clk 0:00:05]} 59. h5 {[%clk 0:00:28]}  Kf4 {[%clk 0:00:06]} 60. h6 {[%clk 0:00:29]}  Ke4 {[%clk 0:00:06]} 61. h7 {[%clk 0:00:30]} 1-0


[Site "https://www.chess.com"]

[Event "Titled Tuesday Blitz June 07 Late 2022"]
[White "Van Foreest, Jorden"]
[Black "Baches Garcia, Guillermo"]
[WhiteFideId "1039784"]
[BlackFideId "2209764"]
[WhiteElo "2609"]
[BlackElo "2498"]
[Result "1-0"]
[Round "01"]
[TimeControl "180+1"]
[Date "2022.06.07"]
[WhiteClock "0:00:54"]
[BlackClock "0:00:04"]

1. b3 {[%clk 0:02:57]}  Nf6 {[%clk 0:02:56]} 2. Bb2 {[%clk 0:02:58]}  g6 {[%clk 0:02:57]} 3. e3 {[%clk 0:02:59]}  Bg7 {[%clk 0:02:56]} 4. Nf3 {[%clk 0:02:59]}  O-O {[%clk 0:02:56]} 5. d4 {[%clk 0:02:59]}  b6 {[%clk 0:02:56]} 6. Be2 {[%clk 0:03:00]}  Bb7 {[%clk 0:02:56]} 7. O-O {[%clk 0:03:01]}  c5 {[%clk 0:02:53]} 8. c4 {[%clk 0:03:01]}  cxd4 {[%clk 0:02:53]} 9. Nxd4 {[%clk 0:03:00]}  Nc6 {[%clk 0:02:52]} 10. Bf3 {[%clk 0:03:00]}  d5 {[%clk 0:02:40]} 11. Nxc6 {[%clk 0:02:54]}  Bxc6 {[%clk 0:02:39]} 12. cxd5 {[%clk 0:02:55]}  Bxd5 {[%clk 0:02:28]} 13. Nd2 {[%clk 0:02:55]}  Rc8 {[%clk 0:02:18]} 14. Rc1 {[%clk 0:02:49]}  Rxc1 {[%clk 0:02:15]} 15. Qxc1 {[%clk 0:02:49]}  Bxf3 {[%clk 0:01:57]} 16. Nxf3 {[%clk 0:02:50]}  Qc8 {[%clk 0:01:57]} 17. h3 {[%clk 0:02:45]}  Qb7 {[%clk 0:01:47]} 18. Rd1 {[%clk 0:02:44]}  Rc8 {[%clk 0:01:45]} 19. Qa1 {[%clk 0:02:41]}  Ne8 {[%clk 0:01:41]} 20. Bxg7 {[%clk 0:02:40]}  Nxg7 {[%clk 0:01:42]} 21. Ne5 {[%clk 0:02:38]}  f6 {[%clk 0:01:21]} 22. Nc4 {[%clk 0:02:31]}  Nf5 {[%clk 0:01:15]} 23. a4 {[%clk 0:02:30]}  Nh4 {[%clk 0:01:11]} 24. f3 {[%clk 0:02:31]}  Nxf3+ {[%clk 0:01:09]} 25. gxf3 {[%clk 0:02:29]}  Qxf3 {[%clk 0:01:10]} 26. Rd2 {[%clk 0:02:27]}  Qxh3 {[%clk 0:00:58]} 27. Qd4 {[%clk 0:02:25]}  Qg3+ {[%clk 0:00:25]} 28. Kf1 {[%clk 0:02:23]}  Rc5 {[%clk 0:00:20]} 29. Rf2 {[%clk 0:02:22]}  Rh5 {[%clk 0:00:14]} 30. Ke2 {[%clk 0:02:21]}  Rh2 {[%clk 0:00:13]} 31. Rxh2 {[%clk 0:02:17]}  Qxh2+ {[%clk 0:00:14]} 32. Kd3 {[%clk 0:02:18]}  Qc7 {[%clk 0:00:14]} 33. e4 {[%clk 0:02:15]}  Kf7 {[%clk 0:00:11]} 34. e5 {[%clk 0:02:12]}  Qc5 {[%clk 0:00:11]} 35. Qh4 {[%clk 0:02:09]}  h5 {[%clk 0:00:10]} 36. Kc3 {[%clk 0:02:05]}  a6 {[%clk 0:00:08]} 37. b4 {[%clk 0:02:03]}  Qc7 {[%clk 0:00:07]} 38. Qf4 {[%clk 0:02:03]}  Qd7 {[%clk 0:00:03]} 39. exf6 {[%clk 0:02:01]}  Qf5 {[%clk 0:00:03]} 40. Qe3 {[%clk 0:01:13]}  Qxf6+ {[%clk 0:00:03]} 41. Kb3 {[%clk 0:01:14]}  b5 {[%clk 0:00:04]} 42. Ne5+ {[%clk 0:01:01]}  Kg7 {[%clk 0:00:04]} 43. axb5 {[%clk 0:01:02]}  axb5 {[%clk 0:00:03]} 44. Qc5 {[%clk 0:01:03]}  h4 {[%clk 0:00:03]} 45. Qxb5 {[%clk 0:01:03]}  h3 {[%clk 0:00:03]} 46. Qd5 {[%clk 0:01:01]}  h2 {[%clk 0:00:03]} 47. Nd3 {[%clk 0:00:54]}  Qf7 {[%clk 0:00:03]} 48. Qxf7+ {[%clk 0:00:54]}  Kxf7 {[%clk 0:00:04]} 49. Nf2 {[%clk 0:00:55]}  g5 {[%clk 0:00:04]} 50. b5 {[%clk 0:00:55]}  g4 {[%clk 0:00:05]} 51. Nh1 {[%clk 0:00:53]}  e6 {[%clk 0:00:03]} 52. b6 {[%clk 0:00:53]}  Ke7 {[%clk 0:00:04]} 53. b7 {[%clk 0:00:54]} 1-0


[Site "https://www.chess.com"]

[Event "Titled Tuesday Blitz June 07 Late 2022"]
[White "Xiong, Jeffery"]
[Black "Vujic, Mihailo"]
[WhiteFideId "2047640"]
[BlackFideId "918873"]
[WhiteElo "2714"]
[BlackElo "2256"]
[Result "1-0"]
[Round "01"]
[TimeControl "180+1"]
[Date "2022.06.07"]
[WhiteClock "0:02:18"]
[BlackClock "0:01:20"]

1. e4 {[%clk 0:03:00]}  e5 {[%clk 0:02:58]} 2. Nf3 {[%clk 0:03:00]}  Nc6 {[%clk 0:02:58]} 3. Nc3 {[%clk 0:03:01]}  Nf6 {[%clk 0:02:57]} 4. d4 {[%clk 0:03:02]}  exd4 {[%clk 0:02:57]} 5. Nxd4 {[%clk 0:03:03]}  Nxe4 {[%clk 0:02:57]} 6. Nxe4 {[%clk 0:03:03]}  Qe7 {[%clk 0:02:57]} 7. Bd3 {[%clk 0:03:03]}  Nxd4 {[%clk 0:02:55]} 8. O-O {[%clk 0:03:04]}  Ne6 {[%clk 0:02:39]} 9. Re1 {[%clk 0:03:02]}  d5 {[%clk 0:02:35]} 10. Ng3 {[%clk 0:03:02]}  Qf6 {[%clk 0:02:24]} 11. Nh5 {[%clk 0:02:53]}  Qh4 {[%clk 0:02:20]} 12. g3 {[%clk 0:02:36]}  Qh3 {[%clk 0:02:06]} 13. Nf4 {[%clk 0:02:32]}  Qh6 {[%clk 0:01:31]} 14. Nxd5 {[%clk 0:02:30]}  Qh3 {[%clk 0:01:20]} 15. Nxc7+ {[%clk 0:02:28]}  Kd8 {[%clk 0:01:20]} 16. Bf5+ {[%clk 0:02:18]} 1-0


[Site "https://www.chess.com"]

[Event "Titled Tuesday Blitz June 07 Late 2022"]
[White "Zhigalko, Sergei"]
[Black "Jian, Alex"]
[WhiteFideId "13502956"]
[BlackFideId "30901022"]
[WhiteElo "2662"]
[BlackElo "2111"]
[Result "1-0"]
[Round "01"]
[TimeControl "180+1"]
[Date "2022.06.07"]
[WhiteClock "0:02:34"]
[BlackClock "0:01:36"]

1. e4 {[%clk 0:03:00]}  c5 {[%clk 0:02:59]} 2. Nf3 {[%clk 0:03:01]}  e6 {[%clk 0:02:59]} 3. c3 {[%clk 0:03:01]}  d5 {[%clk 0:02:58]} 4. e5 {[%clk 0:03:01]}  Nc6 {[%clk 0:02:56]} 5. d4 {[%clk 0:03:01]}  Qb6 {[%clk 0:02:51]} 6. a3 {[%clk 0:03:01]}  Nge7 {[%clk 0:02:43]} 7. b4 {[%clk 0:03:01]}  cxd4 {[%clk 0:02:43]} 8. cxd4 {[%clk 0:03:02]}  Nf5 {[%clk 0:02:39]} 9. Be3 {[%clk 0:03:02]}  Be7 {[%clk 0:02:38]} 10. Bd3 {[%clk 0:03:02]}  O-O {[%clk 0:02:33]} 11. O-O {[%clk 0:03:01]}  Bd7 {[%clk 0:02:25]} 12. Nc3 {[%clk 0:02:51]}  Nh4 {[%clk 0:01:59]} 13. Nxh4 {[%clk 0:02:49]}  Bxh4 {[%clk 0:02:00]} 14. Qh5 {[%clk 0:02:46]}  f5 {[%clk 0:01:40]} 15. exf6 {[%clk 0:02:34]}  Bxf6 {[%clk 0:01:36]} 16. Bxh7+ {[%clk 0:02:34]} 1-0


[Site "https://www.chess.com"]

[Event "Titled Tuesday Blitz June 07 Late 2022"]
[White "Bilan, Danila"]
[Black "Moussard, Jules"]
[WhiteFideId "24161918"]
[BlackFideId "642908"]
[WhiteElo "2164"]
[BlackElo "2589"]
[Result "0-1"]
[Round "02"]
[TimeControl "180+1"]
[Date "2022.06.07"]
[WhiteClock "0:00:02"]
[BlackClock "0:02:03"]

1. d4 {[%clk 0:02:58]}  c6 {[%clk 0:03:00]} 2. Nf3 {[%clk 0:02:58]}  d6 {[%clk 0:03:01]} 3. g3 {[%clk 0:02:57]}  Nf6 {[%clk 0:03:02]} 4. Bg2 {[%clk 0:02:57]}  g6 {[%clk 0:03:03]} 5. O-O {[%clk 0:02:57]}  Bg7 {[%clk 0:03:04]} 6. Bg5 {[%clk 0:02:57]}  O-O {[%clk 0:03:05]} 7. c3 {[%clk 0:02:56]}  Ne4 {[%clk 0:03:05]} 8. Bf4 {[%clk 0:02:54]}  Nd7 {[%clk 0:03:05]} 9. Nbd2 {[%clk 0:02:54]}  Nxd2 {[%clk 0:03:05]} 10. Qxd2 {[%clk 0:02:54]}  e5 {[%clk 0:03:06]} 11. dxe5 {[%clk 0:02:49]}  dxe5 {[%clk 0:03:07]} 12. Bh6 {[%clk 0:02:49]}  Qe7 {[%clk 0:03:07]} 13. Rad1 {[%clk 0:02:45]}  Re8 {[%clk 0:03:07]} 14. Bxg7 {[%clk 0:02:24]}  Kxg7 {[%clk 0:03:08]} 15. Qd6 {[%clk 0:02:24]}  a5 {[%clk 0:03:08]} 16. Rd2 {[%clk 0:02:17]}  Nc5 {[%clk 0:03:08]} 17. Rfd1 {[%clk 0:02:04]}  Qxd6 {[%clk 0:03:07]} 18. Rxd6 {[%clk 0:02:04]}  Be6 {[%clk 0:03:07]} 19. Nxe5 {[%clk 0:01:40]}  Bxa2 {[%clk 0:03:08]} 20. Nd7 {[%clk 0:01:17]}  Na4 {[%clk 0:03:06]} 21. R1d2 {[%clk 0:01:14]}  Re7 {[%clk 0:03:05]} 22. e4 {[%clk 0:01:04]}  Be6 {[%clk 0:03:05]} 23. e5 {[%clk 0:00:58]}  Rd8 {[%clk 0:03:01]} 24. Nf6 {[%clk 0:00:50]}  Rb8 {[%clk 0:03:00]} 25. f4 {[%clk 0:00:45]}  Nb6 {[%clk 0:02:57]} 26. Rd8 {[%clk 0:00:35]}  Rxd8 {[%clk 0:02:58]} 27. Rxd8 {[%clk 0:00:36]}  Nd7 {[%clk 0:02:59]} 28. Ne8+ {[%clk 0:00:24]}  Kh6 {[%clk 0:02:58]} 29. Nd6 {[%clk 0:00:20]}  f6 {[%clk 0:02:54]} 30. Nxb7 {[%clk 0:00:11]}  fxe5 {[%clk 0:02:53]} 31. fxe5 {[%clk 0:00:12]}  Nxe5 {[%clk 0:02:54]} 32. Nc5 {[%clk 0:00:11]}  Bf5 {[%clk 0:02:54]} 33. h3 {[%clk 0:00:06]}  Nf7 {[%clk 0:02:54]} 34. Rd2 {[%clk 0:00:05]}  Re1+ {[%clk 0:02:55]} 35. Kh2 {[%clk 0:00:05]}  Ne5 {[%clk 0:02:50]} 36. g4 {[%clk 0:00:06]}  Bc8 {[%clk 0:02:50]} 37. Nd3 {[%clk 0:00:06]}  Nc4 {[%clk 0:02:49]} 38. Rf2 {[%clk 0:00:04]}  Re3 {[%clk 0:02:47]} 39. Nf4 {[%clk 0:00:03]}  c5 {[%clk 0:02:47]} 40. Nd5 {[%clk 0:00:03]}  Rd3 {[%clk 0:02:46]} 41. Nf6 {[%clk 0:00:03]}  Rd2 {[%clk 0:02:45]} 42. Rf4 {[%clk 0:00:03]}  Ne3 {[%clk 0:02:43]} 43. Kg3 {[%clk 0:00:04]}  Nxg2 {[%clk 0:02:37]} 44. Rc4 {[%clk 0:00:01]}  Bb7 {[%clk 0:02:11]} 45. Rxc5 {[%clk 0:00:02]}  g5 {[%clk 0:02:09]} 46. Nh5 {[%clk 0:00:02]}  Ne3 {[%clk 0:02:03]} 47. Rc7 {[%clk 0:00:02]}  Nf1# {[%clk 0:02:03]} 0-1


[Site "https://www.chess.com"]

[Event "Titled Tuesday Blitz June 07 Late 2022"]
[White "Chigaev, Maksim"]
[Black "Arias Gaviria, Mario Alexis"]
[WhiteFideId "4108116"]
[BlackFideId "3800660"]
[WhiteElo "2457"]
[BlackElo "2174"]
[Result "1-0"]
[Round "02"]
[TimeControl "180+1"]
[Date "2022.06.07"]
[WhiteClock "0:00:16"]
[BlackClock "0:00:08"]

1. e4 {[%clk 0:03:00]}  e5 {[%clk 0:02:58]} 2. Nf3 {[%clk 0:03:00]}  Nc6 {[%clk 0:02:59]} 3. Nc3 {[%clk 0:03:00]}  Nf6 {[%clk 0:02:58]} 4. h3 {[%clk 0:03:00]}  d5 {[%clk 0:02:58]} 5. exd5 {[%clk 0:03:01]}  Nxd5 {[%clk 0:02:58]} 6. Bb5 {[%clk 0:03:02]}  Nxc3 {[%clk 0:02:55]} 7. bxc3 {[%clk 0:03:02]}  Bd6 {[%clk 0:02:54]} 8. O-O {[%clk 0:03:03]}  O-O {[%clk 0:02:54]} 9. d4 {[%clk 0:03:03]}  exd4 {[%clk 0:02:52]} 10. cxd4 {[%clk 0:03:02]}  Bd7 {[%clk 0:02:51]} 11. c4 {[%clk 0:02:57]}  a6 {[%clk 0:02:51]} 12. Ba4 {[%clk 0:02:57]}  b5 {[%clk 0:02:21]} 13. cxb5 {[%clk 0:02:49]}  axb5 {[%clk 0:02:22]} 14. Bxb5 {[%clk 0:02:46]}  Nb4 {[%clk 0:02:17]} 15. Bxd7 {[%clk 0:02:45]}  Qxd7 {[%clk 0:02:18]} 16. a3 {[%clk 0:02:40]}  Nd5 {[%clk 0:02:16]} 17. Re1 {[%clk 0:02:32]}  Qa4 {[%clk 0:02:10]} 18. Qd3 {[%clk 0:02:25]}  Qa6 {[%clk 0:02:00]} 19. Qf5 {[%clk 0:02:24]}  c6 {[%clk 0:01:47]} 20. Ng5 {[%clk 0:01:55]}  g6 {[%clk 0:01:46]} 21. Qf3 {[%clk 0:01:50]}  Be7 {[%clk 0:01:31]} 22. Ne4 {[%clk 0:01:47]}  Qc4 {[%clk 0:01:18]} 23. Bh6 {[%clk 0:01:46]}  Rfe8 {[%clk 0:01:17]} 24. Rac1 {[%clk 0:01:17]}  Qxd4 {[%clk 0:01:16]} 25. Red1 {[%clk 0:00:39]}  Qe5 {[%clk 0:01:03]} 26. Rxc6 {[%clk 0:00:38]}  Red8 {[%clk 0:00:36]} 27. Bc1 {[%clk 0:00:28]}  f5 {[%clk 0:00:32]} 28. Ng5 {[%clk 0:00:24]}  Rab8 {[%clk 0:00:18]} 29. Ne6 {[%clk 0:00:21]}  Rd7 {[%clk 0:00:16]} 30. Nc5 {[%clk 0:00:18]}  Rdd8 {[%clk 0:00:11]} 31. Nd3 {[%clk 0:00:17]}  Qe4 {[%clk 0:00:11]} 32. Re1 {[%clk 0:00:11]}  Qxf3 {[%clk 0:00:10]} 33. gxf3 {[%clk 0:00:12]}  Bf6 {[%clk 0:00:10]} 34. Nf4 {[%clk 0:00:07]}  Bc3 {[%clk 0:00:07]} 35. Rd1 {[%clk 0:00:06]}  Nxf4 {[%clk 0:00:07]} 36. Rxd8+ {[%clk 0:00:06]}  Rxd8 {[%clk 0:00:08]} 37. Bxf4 {[%clk 0:00:07]}  Ra8 {[%clk 0:00:07]} 38. Rxc3 {[%clk 0:00:07]}  Kf7 {[%clk 0:00:06]} 39. h4 {[%clk 0:00:07]}  Ke6 {[%clk 0:00:06]} 40. Re3+ {[%clk 0:00:06]}  Kd5 {[%clk 0:00:07]} 41. Bg5 {[%clk 0:00:07]}  Kc4 {[%clk 0:00:08]} 42. Kg2 {[%clk 0:00:07]}  Kd4 {[%clk 0:00:08]} 43. Kg3 {[%clk 0:00:07]}  Kd5 {[%clk 0:00:09]} 44. f4 {[%clk 0:00:07]}  Kc6 {[%clk 0:00:10]} 45. f3 {[%clk 0:00:08]}  Ra4 {[%clk 0:00:11]} 46. Re7 {[%clk 0:00:07]}  Kd5 {[%clk 0:00:12]} 47. Rxh7 {[%clk 0:00:08]}  Rxa3 {[%clk 0:00:12]} 48. Rg7 {[%clk 0:00:08]}  Ra2 {[%clk 0:00:13]} 49. Rxg6 {[%clk 0:00:08]}  Rc2 {[%clk 0:00:13]} 50. Rf6 {[%clk 0:00:08]}  Ra2 {[%clk 0:00:12]} 51. Rxf5+ {[%clk 0:00:09]}  Ke6 {[%clk 0:00:13]} 52. Re5+ {[%clk 0:00:09]}  Kf7 {[%clk 0:00:14]} 53. Re4 {[%clk 0:00:10]}  Kg6 {[%clk 0:00:13]} 54. Re6+ {[%clk 0:00:10]}  Kg7 {[%clk 0:00:12]} 55. h5 {[%clk 0:00:10]}  Ra8 {[%clk 0:00:09]} 56. Rg6+ {[%clk 0:00:11]}  Kh7 {[%clk 0:00:09]} 57. Rb6 {[%clk 0:00:12]}  Ra7 {[%clk 0:00:08]} 58. Kg4 {[%clk 0:00:12]}  Rf7 {[%clk 0:00:07]} 59. f5 {[%clk 0:00:13]}  Rd7 {[%clk 0:00:08]} 60. f4 {[%clk 0:00:13]}  Rf7 {[%clk 0:00:08]} 61. Re6 {[%clk 0:00:14]}  Rf8 {[%clk 0:00:07]} 62. h6 {[%clk 0:00:14]}  Kg8 {[%clk 0:00:08]} 63. Kh5 {[%clk 0:00:14]}  Rxf5 {[%clk 0:00:07]} 64. Kg6 {[%clk 0:00:14]}  Rf8 {[%clk 0:00:07]} 65. h7+ {[%clk 0:00:14]}  Kh8 {[%clk 0:00:07]} 66. Bf6+ {[%clk 0:00:15]}  Rxf6+ {[%clk 0:00:08]} 67. Kxf6 {[%clk 0:00:16]} 1-0


[Site "https://www.chess.com"]

[Event "Titled Tuesday Blitz June 07 Late 2022"]
[White "D`Arruda, Ricardo D."]
[Black "Makarian, Rudik"]
[WhiteFideId "100692"]
[BlackFideId "44105681"]
[WhiteElo "2459"]
[BlackElo "2398"]
[Result "0-1"]
[Round "02"]
[TimeControl "180+1"]
[Date "2022.06.07"]
[WhiteClock "0:00:21"]
[BlackClock "0:01:40"]

1. d4 {[%clk 0:02:56]}  g6 {[%clk 0:02:59]} 2. e4 {[%clk 0:02:56]}  Bg7 {[%clk 0:03:00]} 3. Nc3 {[%clk 0:02:56]}  d6 {[%clk 0:03:00]} 4. Nf3 {[%clk 0:02:56]}  a6 {[%clk 0:03:01]} 5. Bg5 {[%clk 0:02:56]}  b5 {[%clk 0:02:59]} 6. Qd2 {[%clk 0:02:56]}  Bb7 {[%clk 0:02:59]} 7. O-O-O {[%clk 0:02:55]}  Nd7 {[%clk 0:03:00]} 8. e5 {[%clk 0:02:55]}  h6 {[%clk 0:02:09]} 9. Bh4 {[%clk 0:02:51]}  b4 {[%clk 0:02:09]} 10. Na4 {[%clk 0:02:49]}  a5 {[%clk 0:02:08]} 11. e6 {[%clk 0:02:46]}  fxe6 {[%clk 0:02:05]} 12. Bd3 {[%clk 0:02:46]}  Nf8 {[%clk 0:02:06]} 13. Rhe1 {[%clk 0:02:38]}  Bc6 {[%clk 0:02:06]} 14. b3 {[%clk 0:02:37]}  Bxa4 {[%clk 0:02:03]} 15. bxa4 {[%clk 0:02:38]}  Nf6 {[%clk 0:02:04]} 16. g4 {[%clk 0:02:08]}  Qd7 {[%clk 0:01:52]} 17. Bb5 {[%clk 0:02:05]}  c6 {[%clk 0:01:52]} 18. Bd3 {[%clk 0:02:05]}  Nd5 {[%clk 0:01:53]} 19. Rg1 {[%clk 0:00:50]}  Nc3 {[%clk 0:01:48]} 20. Rde1 {[%clk 0:00:50]}  c5 {[%clk 0:01:44]} 21. Bb5 {[%clk 0:00:31]}  Nxb5 {[%clk 0:01:43]} 22. axb5 {[%clk 0:00:32]}  Qxb5 {[%clk 0:01:43]} 23. d5 {[%clk 0:00:31]}  Qa4 {[%clk 0:01:42]} 24. Kb1 {[%clk 0:00:25]}  Qa3 {[%clk 0:01:40]} 25. Qc1 {[%clk 0:00:21]}  Qc3 {[%clk 0:01:40]} 0-1


[Site "https://www.chess.com"]